fUST/lending_fUST_20240819
["ID","MTS","AMOUNT","RATE_DAILY","PERIOD"]
[335264158,1724057446233,-524.51,0.00016438,2]
[335264160,1724057446243,-500.86823663,0.00016438,2]
[335264162,1724057446252,-506.70761798,0.00016438,2]
[335264164,1724057446262,-500.0,0.00016438,2]
[335264167,1724057446272,-500.0,0.00016438,2]
[335264168,1724057446282,-500.0,0.00016438,2]
[335264171,1724057446292,-500.0,0.00016438,2]
[335264173,1724057446302,-500.0,0.00016438,2]
[335264175,1724057446319,-500.0,0.00016438,2]
[335264177,1724057446332,-500.0,0.00016438,2]
[335264179,1724057446342,-500.0,0.00016438,2]
[335264181,1724057446352,-500.0,0.00016438,2]
[335264183,1724057446363,-500.0,0.00016438,2]
[335264185,1724057446373,-500.0,0.00016438,2]
[335264187,1724057446383,-500.0,0.00016438,2]
[335264189,1724057446393,-500.0,0.00016438,2]
[335264191,1724057446403,-500.0,0.00016438,2]
[335264193,1724057446412,-500.0,0.00016438,2]
[335264195,1724057446422,-495.23904285,0.00016438,2]
[335264197,1724057446432,-500.0,0.00016438,2]
[335264199,1724057446441,-542.99514688,0.00016438,2]
[335264201,1724057446451,-1000.0,0.00016438,2]
[335264203,1724057446461,-500.0,0.00016438,2]
[335264205,1724057446470,-415.53294663,0.00016438,2]
[335264208,1724057446481,-500.0,0.00016438,2]
[335264210,1724057446491,-500.0,0.00016438,2]
[335264212,1724057446500,-500.0,0.00016438,2]
[335264214,1724057446510,-500.0,0.00016438,2]
[335264216,1724057446521,-528.89768533,0.00016438,2]
[335264218,1724057446530,-489.4289657,0.00016438,2]
[335264220,1724057446539,-503.76474957,0.00016438,2]
[335264222,1724057446549,-500.0,0.00016438,2]
[335264224,1724057446558,-500.0,0.00016438,2]
[335264226,1724057446568,-500.0,0.00016438,2]
[335264228,1724057446577,-500.0,0.00016438,2]
[335264230,1724057446587,-500.0,0.00016438,2]
[335264232,1724057446596,-500.0,0.00016438,2]
[335264234,1724057446605,-640.15,0.00016438,2]
[335264236,1724057446615,-500.0,0.00016438,2]
[335264238,1724057446625,-500.0,0.00016438,2]
[335264239,1724057446635,-500.0,0.00016438,2]
[335264241,1724057446645,-503.93529281,0.00016438,2]
[335264243,1724057446654,-500.0,0.00016438,2]
[335264245,1724057446664,-501.02611279,0.00016438,2]
[335264247,1724057446674,-508.14560004,0.00016438,2]
[335264248,1724057446683,-676.81,0.00016438,2]
[335264250,1724057446693,-500.0,0.00016438,2]
[335264252,1724057446703,-526.31895576,0.00016438,2]
[335264254,1724057446712,-500.0,0.00016438,2]
[335264256,1724057446721,-1028.08,0.00016438,2]
[335264258,1724057446731,-710.2,0.00016438,2]
[335264259,1724057446740,-500.0,0.00016438,2]
[335264261,1724057446749,-500.0,0.00016438,2]
[335264263,1724057446759,-500.0,0.00016438,2]
[335264265,1724057446768,-500.0,0.00016438,2]
[335264267,1724057446778,-500.0,0.00016438,2]
[335264268,1724057446787,-502.34974837,0.00016438,2]
[335264270,1724057446797,-648.33,0.00016438,2]
[335264272,1724057446806,-863.43,0.00016438,2]
[335264274,1724057446816,-500.0,0.00016438,2]
[335264276,1724057446826,-500.0,0.00016438,2]
[335264277,1724057446835,-500.0,0.00016438,2]
[335264279,1724057446845,-500.0,0.00016438,2]
[335264281,1724057446854,-500.0,0.00016438,2]
[335264283,1724057446864,-500.0,0.00016438,2]
[335264285,1724057446873,-500.0,0.00016438,2]
[335264287,1724057446882,-500.0,0.00016438,2]
[335264289,1724057446892,-500.0,0.00016438,2]
[335264290,1724057446902,-500.0,0.00016438,2]
[335264292,1724057446911,-500.0,0.00016438,2]
[335264294,1724057446921,-500.0,0.00016438,2]
[335264297,1724057446931,-500.0,0.00016438,2]
[335264300,1724057446940,-500.0,0.00016438,2]
[335264303,1724057446950,-500.0,0.00016438,2]
[335264305,1724057446960,-500.0,0.00016438,2]
[335264308,1724057446970,-500.0,0.00016438,2]
[335264310,1724057446979,-500.0,0.00016438,2]
[335264312,1724057446988,-500.0,0.00016438,2]
[335264314,1724057446998,-500.0,0.00016438,2]
[335264316,1724057447008,-503.5830886,0.00016438,2]
[335264318,1724057447019,-500.0,0.00016438,2]
[335264320,1724057447030,-682.55,0.00016438,2]
[335264322,1724057447039,-500.0,0.00016438,2]
[335264323,1724057447049,-752.9,0.00016438,2]
[335264325,1724057447059,-500.0,0.00016438,2]
[335264327,1724057447070,-500.0,0.00016438,2]
[335264329,1724057447080,-500.0,0.00016438,2]
[335264331,1724057447090,-500.0,0.00016438,2]
[335264333,1724057447100,-500.0,0.00016438,2]
[335264334,1724057447109,-500.0,0.00016438,2]
[335264336,1724057447120,-228.25874751,0.00016438,2]
[335264338,1724057447131,-654.76,0.00016438,2]
[335264340,1724057447142,-700.5,0.00016438,2]
[335264342,1724057447152,-500.0,0.00016438,2]
[335264344,1724057447161,-200.0,0.00016438,2]
[335264346,1724057447171,-939.86,0.00016438,2]
[335264348,1724057447181,-1053.39,0.00016438,2]
[335264350,1724057447191,-500.0,0.00016438,2]
[335264352,1724057447201,-500.0,0.00016438,2]
[335264353,1724057447210,-500.0,0.00016438,2]
[335264355,1724057447219,-500.0,0.00016438,2]
[335264357,1724057447228,-500.0,0.00016438,2]
[335264359,1724057447237,-954.15,0.00016438,2]
[335264361,1724057447247,-1372.42,0.00016438,2]
[335264363,1724057447259,-500.0,0.00016438,2]
[335264364,1724057447268,-953.05,0.00016438,2]
[335264366,1724057447278,-500.0,0.00016438,2]
[335264368,1724057447287,-500.0,0.00016438,2]
[335264370,1724057447297,-500.0,0.00016438,2]
[335264372,1724057447307,-500.0,0.00016438,2]
[335264374,1724057447318,-595.49,0.00016438,2]
[335264375,1724057447329,-500.0,0.00016438,2]
[335264377,1724057447338,-501.83420695,0.00016438,2]
[335264379,1724057447348,-500.0,0.00016438,2]
[335264381,1724057447357,-500.0,0.00016438,2]
[335264383,1724057447367,-500.0,0.00016438,2]
[335264385,1724057447377,-500.0,0.00016438,2]
[335264387,1724057447387,-500.0,0.00016438,2]
[335264389,1724057447398,-500.0,0.00016438,2]
[335264391,1724057447408,-500.0,0.00016438,2]
[335264393,1724057447417,-500.0,0.00016438,2]
[335264394,1724057447426,-515.09823073,0.00016438,2]
[335264396,1724057447436,-500.0,0.00016438,2]
[335264398,1724057447445,-501.14988737,0.00016438,2]
[335264400,1724057447455,-500.0,0.00016438,2]
[335264402,1724057447464,-501.21212383,0.00016438,2]
[335264404,1724057447473,-502.45859411,0.00016438,2]
[335264406,1724057447482,-761.08,0.00016438,2]
[335264408,1724057447492,-500.0,0.00016438,2]
[335264409,1724057447501,-7857.47,0.00016438,2]
[335264411,1724057447511,-7857.47,0.00016438,2]
[335264413,1724057447521,-500.0,0.00016438,2]
[335264415,1724057447531,-7857.47,0.00016438,2]
[335264417,1724057447540,-7857.47,0.00016438,2]
[335264419,1724057447549,-7857.47,0.00016438,2]
[335264421,1724057447559,-7857.47,0.00016438,2]
[335264423,1724057447568,-7857.47,0.00016438,2]
[335264424,1724057447577,-7857.47,0.00016438,2]
[335264426,1724057447587,-7857.47,0.00016438,2]
[335264428,1724057447596,-7857.47,0.00016438,2]
[335264430,1724057447606,-7857.47,0.00016438,2]
[335264432,1724057447615,-500.0,0.00016438,2]
[335264434,1724057447625,-7857.47,0.00016438,2]
[335264436,1724057447635,-7857.47,0.00016438,2]
[335264438,1724057447645,-7857.47,0.00016438,2]
[335264440,1724057447655,-7857.47,0.00016438,2]
[335264442,1724057447665,-7857.47,0.00016438,2]
[335264444,1724057447674,-7857.47,0.00016438,2]
[335264446,1724057447684,-500.0,0.00016438,2]
[335264448,1724057447697,-505.10347882,0.00016438,2]
[335264450,1724057447707,-7857.47,0.00016438,2]
[335264452,1724057447717,-500.0,0.00016438,2]
[335264454,1724057447729,-7857.47,0.00016438,2]
[335264456,1724057447738,-7857.47,0.00016438,2]
[335264457,1724057447748,-7857.47,0.00016438,2]
[335264459,1724057447758,-7857.47,0.00016438,2]
[335264461,1724057447768,-350.76258917,0.00016438,2]
[335264518,1724057448385,-2437.69649314,0.00011842,2]
[335264520,1724057448400,-1387.52708312,0.00011842,2]
[335264759,1724058448141,-235.7165723,8.521e-05,2]
[335264766,1724058546096,-159.84514084,8.436e-05,2]
[335264767,1724058546118,-9423.55887814,8.521e-05,2]
[335264768,1724058546139,-2166.25640825,8.793e-05,2]
[335264769,1724058546160,-2166.25640825,8.793e-05,2]
[335264770,1724058546182,-4.95428296,8.86e-05,2]
[335264847,1724058631956,-300.0,0.00010327,2]
[335264849,1724058631966,-1143.54484415,0.00010328,2]
[335264852,1724058631976,-5827.94910008,0.00010328,2]
[335264854,1724058631986,-420.0,0.0001136,2]
[335264856,1724058631996,-3974.70453186,0.00012163,2]
[335265440,1724058637853,-2128.04084944,0.00012356,2]
[335265442,1724058637863,-587.0,0.00012496,2]
[335265444,1724058637872,-1500.0,0.00012516,2]
[335265446,1724058637883,-2717.24651904,0.00012629,2]
[335265448,1724058637894,-191.27159002,0.00012898,2]
[335265450,1724058637904,-2008.03934723,0.00013599,2]
[335265452,1724058637914,-158.06603325,0.00013688,2]
[335265454,1724058637924,-495.14476956,0.00013698,2]
[335265456,1724058637934,-1659.2924361,0.00013699,2]
[335265459,1724058637944,-778.112864,0.00013699,2]
[335265462,1724058637956,-500.0,0.00013699,2]
[335265464,1724058637966,-500.0,0.00013699,2]
[335265466,1724058637977,-500.0,0.00013699,2]
[335265469,1724058637987,-500.0,0.00013699,2]
[335265471,1724058637997,-262.93222365,0.00013699,2]
[335265473,1724058638006,-500.0,0.00013699,2]
[335265475,1724058638016,-500.0,0.00013699,2]
[335265477,1724058638026,-500.0,0.00013699,2]
[335265479,1724058638036,-500.0,0.00013699,2]
[335265481,1724058638046,-500.0,0.00013699,2]
[335265483,1724058638055,-500.0,0.00013699,2]
[335265485,1724058638065,-500.0,0.00013699,2]
[335265487,1724058638075,-500.0,0.00013699,2]
[335265489,1724058638086,-500.0,0.00013699,2]
[335265491,1724058638095,-500.0,0.00013699,2]
[335265493,1724058638105,-500.0,0.00013699,2]
[335265495,1724058638114,-500.0,0.00013699,2]
[335265497,1724058638125,-500.0,0.00013699,2]
[335265499,1724058638135,-500.0,0.00013699,2]
[335265501,1724058638145,-500.0,0.00013699,2]
[335265503,1724058638155,-500.0,0.00013699,2]
[335265505,1724058638166,-500.0,0.00013699,2]
[335265507,1724058638176,-646.61118293,0.00013699,2]
[335265510,1724058638186,-500.0,0.00013699,2]
[335265512,1724058638195,-1187.5,0.00013699,2]
[335265514,1724058638205,-1187.5,0.00013699,2]
[335265516,1724058638215,-1187.5,0.00013699,2]
[335265518,1724058638225,-1187.5,0.00013699,2]
[335265520,1724058638235,-1187.5,0.00013699,2]
[335265522,1724058638245,-1187.5,0.00013699,2]
[335265524,1724058638255,-1187.5,0.00013699,2]
[335265526,1724058638265,-1187.5,0.00013699,2]
[335265528,1724058638274,-500.0,0.00013745,2]
[335265530,1724058638284,-168.2512913,0.00013745,2]
[335265532,1724058638293,-500.0,0.00013745,2]
[335265534,1724058638303,-500.0,0.00013745,2]
[335265536,1724058638312,-500.0,0.00013745,2]
[335265538,1724058638321,-500.0,0.00013745,2]
[335265540,1724058638331,-500.0,0.00013745,2]
[335265542,1724058638341,-213.38033911,0.00013745,2]
[335265544,1724058638350,-823.0,0.00013746,2]
[335265546,1724058638360,-243.46997914,0.00013971,2]
[335265548,1724058638369,-155.05103229,0.00014234,2]
[335265550,1724058638378,-241.897299,0.00014247,2]
[335265552,1724058638387,-408.9517048,0.00014795,2]
[335265554,1724058638397,-306.7581212,0.00014795,2]
[335265556,1724058638406,-12886.69861989,0.00015,2]
[335265558,1724058638419,-1152.0,0.0001512,2]
[335265560,1724058638428,-1110.9613583,0.00015288,2]
[335265562,1724058638437,-1414.0,0.00015389,2]
[335265564,1724058638447,-171.283466,0.00015507,2]
[335265566,1724058638457,-175.306983,0.00015507,2]
[335265568,1724058638466,-184.989486,0.00015507,2]
[335265570,1724058638477,-171.283465,0.00015507,2]
[335265572,1724058638488,-167.921841,0.00015507,2]
[335265574,1724058638497,-171.283465,0.00015507,2]
[335265576,1724058638508,-184.989486,0.00015507,2]
[335265578,1724058638518,-175.306982,0.00015507,2]
[335265580,1724058638527,-153.0,0.00015616,2]
[335265582,1724058638537,-153.0,0.00015616,2]
[335265584,1724058638547,-153.0,0.00015616,2]
[335265587,1724058638557,-153.0,0.00015616,2]
[335265589,1724058638566,-153.0,0.00015616,2]
[335265591,1724058638576,-153.0,0.00015616,2]
[335265593,1724058638586,-153.0,0.00015616,2]
[335265595,1724058638595,-153.0,0.00015616,2]
[335265597,1724058638605,-153.0,0.00015616,2]
[335265599,1724058638615,-306.0,0.00015616,2]
[335265601,1724058638625,-154.69833824,0.00015712,2]
[335265603,1724058638634,-500.0,0.00015712,7]
[335265605,1724058638643,-500.0,0.00015712,7]
[335265607,1724058638653,-500.0,0.00015712,7]
[335265609,1724058638664,-500.0,0.00015712,7]
[335265611,1724058638673,-500.0,0.00015712,7]
[335265613,1724058638683,-500.0,0.00015712,7]
[335265615,1724058638693,-500.0,0.00015712,7]
[335265617,1724058638702,-500.0,0.00015712,7]
[335265619,1724058638712,-500.0,0.00015712,7]
[335265621,1724058638722,-500.0,0.00015712,7]
[335265623,1724058638735,-500.0,0.00015712,7]
[335265625,1724058638746,-500.0,0.00015712,7]
[335265627,1724058638756,-500.0,0.00015712,7]
[335265629,1724058638767,-500.0,0.00015712,7]
[335265631,1724058638778,-500.0,0.00015712,7]
[335265633,1724058638788,-500.0,0.00015712,7]
[335265635,1724058638798,-500.0,0.00015712,7]
[335265637,1724058638808,-500.0,0.00015712,7]
[335265639,1724058638817,-500.0,0.00015712,7]
[335265641,1724058638827,-500.0,0.00015712,7]
[335265643,1724058638837,-500.0,0.00015712,7]
[335265645,1724058638847,-500.0,0.00015712,7]
[335265648,1724058638857,-500.0,0.00015712,7]
[335265650,1724058638867,-500.0,0.00015712,7]
[335265652,1724058638877,-500.0,0.00015712,7]
[335265654,1724058638887,-379.47,0.00015712,7]
[335265656,1724058638896,-500.0,0.00015712,7]
[335265658,1724058638906,-500.0,0.00015712,7]
[335265660,1724058638916,-500.0,0.00015712,7]
[335265662,1724058638927,-500.0,0.00015712,7]
[335265664,1724058638937,-500.0,0.00015712,7]
[335265666,1724058638949,-500.0,0.00015712,7]
[335265668,1724058638961,-500.0,0.00015712,7]
[335265670,1724058638971,-500.0,0.00015712,7]
[335265672,1724058638980,-399.33,0.00015712,7]
[335265674,1724058638990,-574.18002641,0.00015756,2]
[335265676,1724058639000,-160.0,0.00015777,3]
[335265678,1724058639010,-2008.03934721,0.00015777,2]
[335265680,1724058639020,-321.721777,0.0001589,2]
[335265683,1724058639031,-247.98372407,0.00016,2]
[335265685,1724058639043,-30754.43342455,0.00016,2]
[335265687,1724058639053,-600.0,0.00016044,2]
[335265689,1724058639063,-45088.0244178,0.00016063,2]
[335265691,1724058639074,-500.0,0.00016073,2]
[335265693,1724058639084,-150.0,0.00016102,2]
[335265696,1724058639097,-521.0,0.00016102,2]
[335265698,1724058639108,-600.0,0.00016211,2]
[335265700,1724058639119,-5314.82971232,0.000163,2]
[335265702,1724058639130,-765.96339005,0.00016328,2]
[335265704,1724058639140,-1234.22537098,0.00016328,2]
[335265706,1724058639150,-243.0161,0.00016356,2]
[335265708,1724058639162,-5314.82971228,0.00016376,2]
[335265710,1724058639172,-600.0,0.00016378,2]
[335265712,1724058639182,-150.112233,0.000164,2]
[335265714,1724058639191,-5328.69624806,0.00016401,2]
[335265716,1724058639200,-270528.146507,0.00016428,2]
[335265718,1724058639210,-203.66534114,0.00016437,2]
[335265720,1724058639220,-5993.21173941,0.00016437,2]
[335265723,1724058639238,-518.20982107,0.00016438,2]
[335265726,1724058639250,-500.0,0.00016438,2]
[335265728,1724058639260,-500.0,0.00016438,2]
[335265730,1724058639270,-500.0,0.00016438,2]
[335265732,1724058639280,-500.0,0.00016438,2]
[335265734,1724058639290,-500.0,0.00016438,2]
[335265736,1724058639300,-500.0,0.00016438,2]
[335265738,1724058639311,-500.0,0.00016438,2]
[335265740,1724058639321,-500.0,0.00016438,2]
[335265742,1724058639331,-500.0,0.00016438,2]
[335265744,1724058639341,-500.0,0.00016438,2]
[335265746,1724058639351,-500.0,0.00016438,2]
[335265749,1724058639361,-614.48,0.00016438,2]
[335265751,1724058639372,-520.88156486,0.00016438,2]
[335265753,1724058639381,-463.36513223,0.00016438,2]
[335265755,1724058639391,-501.99412025,0.00016438,2]
[335265757,1724058639401,-500.0,0.00016438,2]
[335265759,1724058639414,-500.0,0.00016438,2]
[335265761,1724058639424,-500.0,0.00016438,2]
[335265764,1724058639435,-500.0,0.00016438,2]
[335265767,1724058639445,-500.0,0.00016438,2]
[335265769,1724058639455,-510.92355618,0.00016438,2]
[335265773,1724058639465,-511.04729471,0.00016438,2]
[335265776,1724058639475,-500.0,0.00016438,2]
[335265800,1724058639664,-512.33088764,0.00016438,2]
[335265802,1724058639676,-500.0,0.00016438,2]
[335265804,1724058639687,-500.0,0.00016438,2]
[335265806,1724058639698,-504.13869695,0.00016438,2]
[335265808,1724058639708,-500.0,0.00016438,2]
[335265810,1724058639718,-500.0,0.00016438,2]
[335265811,1724058639730,-500.0,0.00016438,2]
[335265812,1724058639744,-504.46628395,0.00016438,2]
[335265813,1724058639754,-500.0,0.00016438,2]
[335265814,1724058639764,-819.39,0.00016438,2]
[335265815,1724058639775,-500.0,0.00016438,2]
[335265816,1724058639784,-725.95,0.00016438,2]
[335265817,1724058639795,-500.0,0.00016438,2]
[335265818,1724058639805,-500.0,0.00016438,2]
[335265819,1724058639816,-500.0,0.00016438,2]
[335265820,1724058639827,-500.0,0.00016438,2]
[335265821,1724058639837,-500.0,0.00016438,2]
[335265822,1724058639847,-500.0,0.00016438,2]
[335265824,1724058639856,-500.0,0.00016438,2]
[335265826,1724058639867,-500.0,0.00016438,2]
[335265828,1724058639877,-500.74909521,0.00016438,2]
[335265830,1724058639887,-500.0,0.00016438,2]
[335265832,1724058639896,-500.0,0.00016438,2]
[335265834,1724058639906,-500.0,0.00016438,2]
[335265836,1724058639916,-500.0,0.00016438,2]
[335265838,1724058639925,-500.0,0.00016438,2]
[335265840,1724058639935,-500.0,0.00016438,2]
[335265842,1724058639946,-544.77970852,0.00016438,2]
[335265844,1724058639955,-500.0,0.00016438,2]
[335265846,1724058639965,-500.0,0.00016438,2]
[335265848,1724058639975,-500.0,0.00016438,2]
[335265850,1724058639984,-500.0,0.00016438,2]
[335265853,1724058639995,-500.0,0.00016438,2]
[335265855,1724058640004,-500.0,0.00016438,2]
[335265857,1724058640014,-674.01,0.00016438,2]
[335265859,1724058640028,-348.75863628,0.00016438,2]
[335265861,1724058640038,-500.0,0.00016438,2]
[335265863,1724058640048,-508.69458066,0.00016438,2]
[335265865,1724058640058,-670.69,0.00016438,2]
[335265867,1724058640067,-506.70761798,0.00016438,2]
[335265869,1724058640077,-500.0,0.00016438,2]
[335265871,1724058640087,-500.0,0.00016438,2]
[335265873,1724058640097,-500.0,0.00016438,2]
[335265876,1724058640107,-500.0,0.00016438,2]
[335265878,1724058640117,-500.0,0.00016438,2]
[335265880,1724058640127,-500.0,0.00016438,2]
[335265881,1724058640137,-500.0,0.00016438,2]
[335265884,1724058640146,-500.0,0.00016438,2]
[335265886,1724058640157,-500.0,0.00016438,2]
[335265888,1724058640168,-500.86823663,0.00016438,2]
[335265890,1724058640178,-495.23904285,0.00016438,2]
[335265892,1724058640188,-542.99514688,0.00016438,2]
[335265894,1724058640198,-853.33,0.00016438,2]
[335265896,1724058640207,-500.0,0.00016438,2]
[335265898,1724058640217,-500.0,0.00016438,2]
[335265900,1724058640228,-500.0,0.00016438,2]
[335265902,1724058640238,-502.79,0.00016438,2]
[335265904,1724058640248,-500.0,0.00016438,2]
[335265906,1724058640258,-500.0,0.00016438,2]
[335265908,1724058640267,-489.4289657,0.00016438,2]
[335265910,1724058640277,-500.0,0.00016438,2]
[335265912,1724058640287,-500.0,0.00016438,2]
[335265914,1724058640297,-500.0,0.00016438,2]
[335265916,1724058640307,-679.79,0.00016438,2]
[335265918,1724058640317,-500.0,0.00016438,2]
[335265921,1724058640327,-640.15,0.00016438,2]
[335265923,1724058640336,-500.0,0.00016438,2]
[335265925,1724058640346,-723.39,0.00016438,2]
[335265927,1724058640356,-806.62,0.00016438,2]
[335265929,1724058640366,-508.14560004,0.00016438,2]
[335265931,1724058640376,-501.35851271,0.00016438,2]
[335265933,1724058640385,-528.89768533,0.00016438,2]
[335265935,1724058640395,-526.31895576,0.00016438,2]
[335265937,1724058640405,-500.0,0.00016438,2]
[335265939,1724058640418,-1025.87,0.00016438,2]
[335265941,1724058640427,-500.0,0.00016438,2]
[335265943,1724058640437,-500.0,0.00016438,2]
[335265945,1724058640448,-758.25,0.00016438,2]
[335265947,1724058640458,-500.0,0.00016438,2]
[335265949,1724058640468,-500.0,0.00016438,2]
[335265951,1724058640478,-500.0,0.00016438,2]
[335265953,1724058640487,-500.0,0.00016438,2]
[335265955,1724058640498,-501.02611279,0.00016438,2]
[335265957,1724058640507,-500.0,0.00016438,2]
[335265959,1724058640517,-500.0,0.00016438,2]
[335265961,1724058640527,-415.53294663,0.00016438,2]
[335265963,1724058640537,-151.0,0.00016438,2]
[335265965,1724058640547,-206.772034,0.00016438,2]
[335265967,1724058640557,-500.0,0.00016438,2]
[335265970,1724058640567,-500.0,0.00016438,2]
[335265972,1724058640577,-500.0,0.00016438,2]
[335265974,1724058640588,-502.34974837,0.00016438,2]
[335265976,1724058640598,-992.95,0.00016438,2]
[335265978,1724058640608,-500.0,0.00016438,2]
[335265980,1724058640618,-503.93529281,0.00016438,2]
[335265982,1724058640628,-500.0,0.00016438,2]
[335265984,1724058640638,-500.0,0.00016438,2]
[335265986,1724058640648,-781.91,0.00016438,2]
[335265988,1724058640658,-500.0,0.00016438,2]
[335265990,1724058640669,-500.0,0.00016438,2]
[335265992,1724058640678,-500.0,0.00016438,2]
[335265994,1724058640688,-500.0,0.00016438,2]
[335265996,1724058640699,-648.33,0.00016438,2]
[335265998,1724058640709,-1898.03,0.00016438,2]
[335266001,1724058640718,-500.0,0.00016438,2]
[335266002,1724058640728,-676.81,0.00016438,2]
[335266004,1724058640741,-500.0,0.00016438,2]
[335266006,1724058640750,-500.0,0.00016438,2]
[335266009,1724058640760,-500.0,0.00016438,2]
[335266011,1724058640770,-500.0,0.00016438,2]
[335266013,1724058640781,-500.0,0.00016438,2]
[335266015,1724058640791,-500.0,0.00016438,2]
[335266017,1724058640800,-500.0,0.00016438,2]
[335266019,1724058640811,-506.37358524,0.00016438,2]
[335266021,1724058640821,-500.0,0.00016438,2]
[335266023,1724058640830,-500.0,0.00016438,2]
[335266025,1724058640840,-500.0,0.00016438,2]
[335266027,1724058640851,-505.32476794,0.00016438,2]
[335266028,1724058640860,-500.0,0.00016438,2]
[335266031,1724058640870,-500.0,0.00016438,2]
[335266033,1724058640880,-500.0,0.00016438,2]
[335266035,1724058640890,-500.0,0.00016438,2]
[335266037,1724058640902,-500.0,0.00016438,2]
[335266039,1724058640913,-610.97,0.00016438,2]
[335266041,1724058640923,-500.0,0.00016438,2]
[335266043,1724058640933,-500.0,0.00016438,2]
[335266045,1724058640943,-500.0,0.00016438,2]
[335266047,1724058640953,-532.12,0.00016438,2]
[335266049,1724058640963,-525.85,0.00016438,2]
[335266051,1724058640973,-500.0,0.00016438,2]
[335266053,1724058640982,-503.5830886,0.00016438,2]
[335266055,1724058640992,-622.24,0.00016438,2]
[335266057,1724058641002,-228.25874751,0.00016438,2]
[335266059,1724058641012,-500.0,0.00016438,2]
[335266061,1724058641022,-500.0,0.00016438,2]
[335266063,1724058641032,-700.5,0.00016438,2]
[335266065,1724058641041,-500.0,0.00016438,2]
[335266067,1724058641052,-500.0,0.00016438,2]
[335266069,1724058641062,-917.08,0.00016438,2]
[335266071,1724058641072,-200.0,0.00016438,2]
[335266073,1724058641081,-500.0,0.00016438,2]
[335266075,1724058641091,-500.0,0.00016438,2]
[335266077,1724058641101,-500.0,0.00016438,2]
[335266079,1724058641110,-1372.42,0.00016438,2]
[335266081,1724058641120,-500.0,0.00016438,2]
[335266083,1724058641129,-500.0,0.00016438,2]
[335266085,1724058641138,-500.0,0.00016438,2]
[335266087,1724058641148,-500.0,0.00016438,2]
[335266089,1724058641157,-500.0,0.00016438,2]
[335266091,1724058641170,-502.22,0.00016438,2]
[335266093,1724058641180,-501.83420695,0.00016438,2]
[335266095,1724058641190,-501.21212383,0.00016438,2]
[335266097,1724058641200,-500.0,0.00016438,2]
[335266099,1724058641210,-500.0,0.00016438,2]
[335266101,1724058641220,-500.0,0.00016438,2]
[335266103,1724058641230,-500.0,0.00016438,2]
[335266106,1724058641239,-500.0,0.00016438,2]
[335266108,1724058641249,-500.0,0.00016438,2]
[335266110,1724058641258,-512.21931857,0.00016438,2]
[335266112,1724058641267,-500.0,0.00016438,2]
[335266114,1724058641277,-686.28,0.00016438,2]
[335266116,1724058641286,-654.76,0.00016438,2]
[335266118,1724058641296,-533.37,0.00016438,2]
[335266120,1724058641306,-500.0,0.00016438,2]
[335266122,1724058641317,-500.0,0.00016438,2]
[335266124,1724058641326,-449.00996607,0.00016438,2]
[335266126,1724058641336,-500.0,0.00016438,2]
[335266128,1724058641346,-509.74200736,0.00016438,2]
[335266130,1724058641356,-1057.47,0.00016438,2]